[Event "*** MasterClass Titled Tuesday Blitz"]
[Site "Chess.com"]
[Date "2017.08.01"]
[Round "4"]
[White "GrigorGrigorov"]
[Black "vellottiwizard"]
[Result "1-0"]
[WhiteElo "2618"]
[BlackElo "2513"]
[TimeControl "180+2"]
[EndTime "13:53:10 PDT"]
[Termination "GrigorGrigorov won by resignation"]

1. d4 {[%clk 0:03:01.9]} 1... Nf6 {[%clk 0:03:00.7]} 2. c4 {[%clk 0:03:02.4]}
2... e6 {[%clk 0:03:02.3]} 3. Nc3 {[%clk 0:03:03.6]} 3... Bb4 {[%clk 0:03:03.6]}
4. e3 {[%clk 0:03:03.8]} 4... O-O {[%clk 0:03:05.2]} 5. Ne2 {[%clk 0:03:04.7]}
5... d5 {[%clk 0:03:06.6]} 6. a3 {[%clk 0:03:05.9]} 6... Be7 {[%clk 0:03:07.9]}
7. cxd5 {[%clk 0:03:07]} 7... exd5 {[%clk 0:03:09.1]} 8. Nf4 {[%clk 0:03:08]}
8... c6 {[%clk 0:03:10.5]} 9. Bd3 {[%clk 0:03:08.5]} 9... Re8 {[%clk 0:03:11.9]}
10. O-O {[%clk 0:03:09.1]} 10... Nbd7 {[%clk 0:03:13.7]} 11. f3 {[%clk
0:03:07.4]} 11... Nf8 {[%clk 0:03:14.9]} 12. Bd2 {[%clk 0:03:02.4]} 12... Ne6
{[%clk 0:03:15.9]} 13. Nfe2 {[%clk 0:03:01.6]} 13... c5 {[%clk 0:03:05.4]} 14.
Be1 {[%clk 0:02:56.7]} 14... cxd4 {[%clk 0:03:00]} 15. exd4 {[%clk 0:02:57.4]}
15... Bd7 {[%clk 0:02:58.7]} 16. Qd2 {[%clk 0:02:55]} 16... Rc8 {[%clk
0:02:59.2]} 17. Bf2 {[%clk 0:02:52.4]} 17... Qb6 {[%clk 0:02:58.4]} 18. Rac1
{[%clk 0:02:49.2]} 18... Bd6 {[%clk 0:02:57.8]} 19. Bb1 {[%clk 0:02:45.2]} 19...
a6 {[%clk 0:02:54.2]} 20. Bg3 {[%clk 0:02:37.4]} 20... Bxg3 {[%clk 0:02:52.3]}
21. hxg3 {[%clk 0:02:39.3]} 21... Bb5 {[%clk 0:02:49.1]} 22. Nxb5 {[%clk
0:02:26.3]} 22... Qxb5 {[%clk 0:02:49.6]} 23. Bd3 {[%clk 0:02:18]} 23... Qb6
{[%clk 0:02:49.8]} 24. Qb4 {[%clk 0:02:15.6]} 24... Qxb4 {[%clk 0:02:44.4]} 25.
axb4 {[%clk 0:02:17.5]} 25... Kf8 {[%clk 0:02:45.7]} 26. g4 {[%clk 0:02:15]}
26... h6 {[%clk 0:02:44.4]} 27. Kf2 {[%clk 0:02:15.9]} 27... Red8 {[%clk
0:02:38]} 28. b5 {[%clk 0:02:14.6]} 28... axb5 {[%clk 0:02:34.1]} 29. Bxb5
{[%clk 0:02:15.6]} 29... Ne8 {[%clk 0:02:33.1]} 30. Bd3 {[%clk 0:02:10.3]} 30...
Nd6 {[%clk 0:02:34.3]} 31. b3 {[%clk 0:02:10.6]} 31... Ke7 {[%clk 0:02:31.4]}
32. Rxc8 {[%clk 0:02:08.1]} 32... Rxc8 {[%clk 0:02:32.5]} 33. Ra1 {[%clk
0:02:09.1]} 33... Rc7 {[%clk 0:02:22.8]} 34. Ke3 {[%clk 0:02:10.1]} 34... Kf6
{[%clk 0:02:22]} 35. Ra8 {[%clk 0:02:09.5]} 35... Re7 {[%clk 0:02:21.7]} 36. Kd2
{[%clk 0:02:08.4]} 36... g6 {[%clk 0:02:21.9]} 37. Rh8 {[%clk 0:02:06.5]} 37...
Kg7 {[%clk 0:02:21.8]} 38. Rb8 {[%clk 0:02:05.4]} 38... Kf6 {[%clk 0:02:20.2]}
39. g3 {[%clk 0:01:59.3]} 39... Ng5 {[%clk 0:02:16.7]} 40. Ng1 {[%clk
0:01:51.7]} 40... Ne6 {[%clk 0:02:17.5]} 41. Ne2 {[%clk 0:01:40.7]} 41... Rd7
{[%clk 0:02:18]} 42. f4 {[%clk 0:01:30.8]} 42... Nd8 {[%clk 0:02:11.2]} 43. Nc3
{[%clk 0:01:28.9]} 43... Nc6 {[%clk 0:02:11.1]} 44. Ra8 {[%clk 0:01:10.3]} 44...
Nxd4 {[%clk 0:02:11.5]} 45. Nxd5+ {[%clk 0:01:09.8]} 45... Kg7 {[%clk
0:01:54.4]} 46. Kc3 {[%clk 0:00:46.7]} 46... Ne6 {[%clk 0:01:17.9]} 47. f5
{[%clk 0:00:41.1]} 47... Nc7 {[%clk 0:01:12.8]} 48. f6+ {[%clk 0:00:36.3]} 48...
Kh7 {[%clk 0:01:13.9]} 49. Nxc7 {[%clk 0:00:31.7]} 49... Rxc7+ {[%clk
0:01:15.8]} 50. Kb4 {[%clk 0:00:29.6]} 50... Rc6 {[%clk 0:01:07.4]} 51. Rf8
{[%clk 0:00:27.3]} 51... Rc7 {[%clk 0:00:55.7]} 52. Rd8 {[%clk 0:00:23.8]} 52...
Nc8 {[%clk 0:00:55.2]} 53. Bc4 {[%clk 0:00:22.7]} 53... h5 {[%clk 0:00:34.9]}
54. g5 {[%clk 0:00:23.3]} 54... Na7 {[%clk 0:00:27.5]} 55. Rf8 {[%clk
0:00:21.4]} 55... Nc6+ {[%clk 0:00:28.1]} 56. Kc5 {[%clk 0:00:20.3]} 56... Ne5+
{[%clk 0:00:30]} 57. Kd6 {[%clk 0:00:20.8]} 1-0

[Event "*** MasterClass Titled Tuesday Blitz"]
[Site "Chess.com"]
[Date "2017.08.01"]
[Round "4"]
[White "nutibara"]
[Black "Usurpov"]
[Result "1/2-1/2"]
[WhiteElo "2240"]
[BlackElo "2267"]
[TimeControl "180+2"]
[EndTime "13:53:10 PDT"]
[Termination "Game drawn by repetition"]

1. e4 {[%clk 0:02:58.7]} 1... c5 {[%clk 0:03:00.3]} 2. Nf3 {[%clk 0:02:59.4]}
2... Nc6 {[%clk 0:02:59.6]} 3. d4 {[%clk 0:03:01.3]} 3... cxd4 {[%clk
0:03:01.4]} 4. Nxd4 {[%clk 0:03:03.2]} 4... e5 {[%clk 0:03:02.4]} 5. Nb5 {[%clk
0:03:04.2]} 5... a6 {[%clk 0:03:03.5]} 6. Nd6+ {[%clk 0:03:04.9]} 6... Bxd6
{[%clk 0:03:04.6]} 7. Qxd6 {[%clk 0:03:04.9]} 7... Qe7 {[%clk 0:03:05.8]} 8. Qd1
{[%clk 0:03:00.9]} 8... Nf6 {[%clk 0:03:05.8]} 9. Nc3 {[%clk 0:03:02]} 9... h6
{[%clk 0:03:01.6]} 10. Nd5 {[%clk 0:03:01.1]} 10... Nxd5 {[%clk 0:02:59.1]} 11.
exd5 {[%clk 0:03:01.1]} 11... Nd4 {[%clk 0:02:44.7]} 12. c3 {[%clk 0:02:34.9]}
12... Nf5 {[%clk 0:02:44.5]} 13. Bd3 {[%clk 0:02:34.8]} 13... d6 {[%clk
0:02:27.7]} 14. O-O {[%clk 0:02:34.8]} 14... O-O {[%clk 0:02:25.6]} 15. f4
{[%clk 0:02:30.5]} 15... exf4 {[%clk 0:02:00.9]} 16. Bxf4 {[%clk 0:02:30]} 16...
Ne3 {[%clk 0:01:34.3]} 17. Qe2 {[%clk 0:02:29.3]} 17... Nxd5 {[%clk 0:01:32.5]}
18. Qxe7 {[%clk 0:02:19.6]} 18... Nxe7 {[%clk 0:01:34.4]} 19. Bxd6 {[%clk
0:02:18]} 19... Rd8 {[%clk 0:01:21.9]} 20. Bxe7 {[%clk 0:02:17.5]} 20... Rxd3
{[%clk 0:01:21.9]} 21. Rad1 {[%clk 0:02:17.6]} 21... Rxd1 {[%clk 0:01:20.6]} 22.
Rxd1 {[%clk 0:02:18.1]} 22... Be6 {[%clk 0:01:22.1]} 23. b3 {[%clk 0:02:12.6]}
23... Re8 {[%clk 0:01:15.8]} 24. Bb4 {[%clk 0:02:09.6]} 24... Bg4 {[%clk
0:01:10]} 25. Rd2 {[%clk 0:02:09.8]} 25... Re2 {[%clk 0:01:10.6]} 26. Rxe2
{[%clk 0:02:10]} 26... Bxe2 {[%clk 0:01:12.5]} 27. Kf2 {[%clk 0:02:04.4]} 27...
Bd3 {[%clk 0:01:13.1]} 28. Bc5 {[%clk 0:02:00.6]} 28... f5 {[%clk 0:00:53.7]}
29. Ke3 {[%clk 0:01:59.9]} 29... Bb1 {[%clk 0:00:54.5]} 30. Kd2 {[%clk 0:01:56]}
30... Kf7 {[%clk 0:00:51]} 31. Bd4 {[%clk 0:01:52.8]} 31... g5 {[%clk
0:00:50.5]} 32. c4 {[%clk 0:01:51.3]} 32... Ke6 {[%clk 0:00:49.1]} 33. Bg7
{[%clk 0:01:48.1]} 33... h5 {[%clk 0:00:49.5]} 34. Bh6 {[%clk 0:01:47.7]} 34...
Kf6 {[%clk 0:00:50.5]} 35. a4 {[%clk 0:01:47.4]} 35... Be4 {[%clk 0:00:46.8]}
36. g3 {[%clk 0:01:47.9]} 36... Kg6 {[%clk 0:00:41.8]} 37. Bf8 {[%clk 0:01:48]}
37... f4 {[%clk 0:00:42.7]} 38. gxf4 {[%clk 0:01:48.3]} 38... gxf4 {[%clk
0:00:44.6]} 39. Bd6 {[%clk 0:01:44.9]} 39... Kf5 {[%clk 0:00:45.7]} 40. b4
{[%clk 0:01:44.2]} 40... Kg4 {[%clk 0:00:40.6]} 41. b5 {[%clk 0:01:41.1]} 41...
axb5 {[%clk 0:00:37.9]} 42. axb5 {[%clk 0:01:38.1]} 42... Kf3 {[%clk 0:00:37.2]}
43. c5 {[%clk 0:01:37.6]} 43... Bd5 {[%clk 0:00:36.5]} 44. Kd3 {[%clk
0:01:34.9]} 44... Kg4 {[%clk 0:00:31.7]} 45. Kd4 {[%clk 0:01:30.6]} 45... Bg2
{[%clk 0:00:26.5]} 46. Bc7 {[%clk 0:01:25.5]} 46... h4 {[%clk 0:00:25.8]} 47.
Bd6 {[%clk 0:01:23]} 47... Bh1 {[%clk 0:00:20]} 48. Bc7 {[%clk 0:01:22.7]} 48...
Bg2 {[%clk 0:00:20.6]} 49. Bd6 {[%clk 0:01:21.8]} 49... Bh1 {[%clk 0:00:21.2]}
50. Kd3 {[%clk 0:01:21.1]} 50... Bg2 {[%clk 0:00:21.5]} 51. Kd4 {[%clk
0:01:20.9]} 51... Bh1 {[%clk 0:00:22.4]} 52. Be5 {[%clk 0:01:22]} 52... Bg2
{[%clk 0:00:23.3]} 53. Kd3 {[%clk 0:01:01.1]} 53... Bh1 {[%clk 0:00:23.9]} 54.
Kd4 {[%clk 0:00:49.7]} 54... Bg2 {[%clk 0:00:24.8]} 55. Bd6 {[%clk 0:00:49.6]}
55... Bh1 {[%clk 0:00:25.4]} 56. Bc7 {[%clk 0:00:49.5]} 56... Bg2 {[%clk
0:00:26.2]} 57. Bd6 {[%clk 0:00:38.1]} 1/2-1/2

[Event "*** MasterClass Titled Tuesday Blitz"]
[Site "Chess.com"]
[Date "2017.08.01"]
[Round "4"]
[White "Bengalas"]
[Black "iturrizaga"]
[Result "1-0"]
[WhiteElo "2484"]
[BlackElo "2629"]
[TimeControl "180+2"]
[EndTime "13:53:20 PDT"]
[Termination "Bengalas won on time"]

1. d4 {[%clk 0:03:01.9]} 1... Nf6 {[%clk 0:03:00.8]} 2. c4 {[%clk 0:03:03]} 2...
c5 {[%clk 0:03:01.3]} 3. d5 {[%clk 0:03:03.7]} 3... b5 {[%clk 0:03:02.9]} 4.
cxb5 {[%clk 0:03:04.5]} 4... a6 {[%clk 0:03:04.4]} 5. bxa6 {[%clk 0:03:05.8]}
5... g6 {[%clk 0:03:06]} 6. Nc3 {[%clk 0:03:06.6]} 6... Bxa6 {[%clk 0:03:07.6]}
7. e4 {[%clk 0:03:07.5]} 7... Bxf1 {[%clk 0:03:09.5]} 8. Kxf1 {[%clk 0:03:09]}
8... d6 {[%clk 0:03:11.4]} 9. Nf3 {[%clk 0:03:09.9]} 9... Bg7 {[%clk 0:03:13]}
10. g3 {[%clk 0:03:10.9]} 10... O-O {[%clk 0:03:14.6]} 11. Kg2 {[%clk
0:03:12.1]} 11... Nbd7 {[%clk 0:03:16.2]} 12. a4 {[%clk 0:03:12.5]} 12... Qb8
{[%clk 0:03:17.2]} 13. Qc2 {[%clk 0:03:08.6]} 13... Rc8 {[%clk 0:03:18.3]} 14.
h3 {[%clk 0:03:06.5]} 14... c4 {[%clk 0:03:19.5]} 15. Rd1 {[%clk 0:03:01.3]}
15... Nc5 {[%clk 0:03:20.3]} 16. Nd4 {[%clk 0:03:02.2]} 16... Nd3 {[%clk
0:03:21.2]} 17. Nc6 {[%clk 0:02:58.4]} 17... Qb7 {[%clk 0:03:21.7]} 18. Nb5
{[%clk 0:02:34.3]} 18... Nxe4 {[%clk 0:01:45.1]} 19. Qxc4 {[%clk 0:02:33]} 19...
Ndxf2 {[%clk 0:01:45.8]} 20. Rf1 {[%clk 0:01:46]} 20... e6 {[%clk 0:01:29.9]}
21. Qe2 {[%clk 0:01:30.5]} 21... exd5 {[%clk 0:00:40.1]} 22. Ncd4 {[%clk
0:01:31]} 22... Nxg3 {[%clk 0:00:25]} 23. Kxg3 {[%clk 0:01:23.4]} 23... Ne4+
{[%clk 0:00:25.8]} 24. Kg2 {[%clk 0:01:23.6]} 24... Qd7 {[%clk 0:00:19.2]} 25.
Be3 {[%clk 0:01:19.5]} 25... f5 {[%clk 0:00:19.9]} 26. Rfc1 {[%clk 0:01:04.7]}
26... Be5 {[%clk 0:00:17.2]} 27. Rxc8+ {[%clk 0:01:01.8]} 27... Rxc8 {[%clk
0:00:19.1]} 28. Rc1 {[%clk 0:01:01.7]} 28... Re8 {[%clk 0:00:16.9]} 29. Rc7
{[%clk 0:00:57.1]} 29... Qd8 {[%clk 0:00:18]} 30. Nc6 {[%clk 0:00:32]} 30... Qh4
{[%clk 0:00:17.9]} 31. Qf3 {[%clk 0:00:18.7]} 31... Ng5 {[%clk 0:00:16.7]} 32.
Bxg5 {[%clk 0:00:16.1]} 32... Qxg5+ {[%clk 0:00:18.6]} 33. Kf1 {[%clk
0:00:14.5]} 33... Qc1+ {[%clk 0:00:19.2]} 34. Kg2 {[%clk 0:00:14]} 34... Qg5+
{[%clk 0:00:19.7]} 35. Kf1 {[%clk 0:00:14.6]} 35... Bxb2 {[%clk 0:00:11.1]} 36.
Qxd5+ {[%clk 0:00:13.5]} 36... Kh8 {[%clk 0:00:12.2]} 37. Ncd4 {[%clk
0:00:10.2]} 37... Qf4+ {[%clk 0:00:09.4]} 38. Nf3 {[%clk 0:00:11.2]} 38... Bg7
{[%clk 0:00:07.5]} 39. Nxd6 {[%clk 0:00:10.1]} 39... Rf8 {[%clk 0:00:03.8]} 40.
Nf7+ {[%clk 0:00:09.4]} 40... Rxf7 {[%clk 0:00:05.3]} 41. Rxf7 {[%clk
0:00:09.5]} 41... Qc1+ {[%clk 0:00:06.4]} 42. Ne1 {[%clk 0:00:09.3]} 42... Qf4+
{[%clk 0:00:07.4]} 43. Kg2 {[%clk 0:00:07.2]} 43... Qg5+ {[%clk 0:00:08.1]} 44.
Kf1 {[%clk 0:00:07.9]} 44... Qf4+ {[%clk 0:00:09.1]} 45. Nf3 {[%clk 0:00:06]}
45... Qc1+ {[%clk 0:00:09.8]} 46. Kg2 {[%clk 0:00:06.8]} 46... h5 {[%clk
0:00:08.1]} 47. Rd7 {[%clk 0:00:06.3]} 1-0

[Event "*** MasterClass Titled Tuesday Blitz"]
[Site "Chess.com"]
[Date "2017.08.01"]
[Round "4"]
[White "toad"]
[Black "CookiesAndIceCream"]
[Result "1-0"]
[WhiteElo "2134"]
[BlackElo "2138"]
[TimeControl "180+2"]
[EndTime "13:53:42 PDT"]
[Termination "toad won by resignation"]

1. d4 {[%clk 0:03:01.9]} 1... Nf6 {[%clk 0:03:00.4]} 2. c4 {[%clk 0:03:02.6]}
2... g6 {[%clk 0:03:01.6]} 3. g3 {[%clk 0:03:03.9]} 3... c6 {[%clk 0:03:02.5]}
4. Bg2 {[%clk 0:03:04.4]} 4... d5 {[%clk 0:03:04.1]} 5. cxd5 {[%clk 0:03:02.8]}
5... cxd5 {[%clk 0:03:06]} 6. Nf3 {[%clk 0:03:03.9]} 6... Bg7 {[%clk 0:03:07.2]}
7. Nc3 {[%clk 0:03:04.5]} 7... O-O {[%clk 0:03:08.1]} 8. Ne5 {[%clk 0:03:04.7]}
8... b6 {[%clk 0:03:09.3]} 9. O-O {[%clk 0:03:04.8]} 9... Bb7 {[%clk 0:03:10.5]}
10. Bf4 {[%clk 0:03:03.3]} 10... Nc6 {[%clk 0:03:11.7]} 11. Rc1 {[%clk
0:02:57.9]} 11... Rc8 {[%clk 0:03:12.7]} 12. Qa4 {[%clk 0:02:57.3]} 12... a6
{[%clk 0:03:11.4]} 13. Nxc6 {[%clk 0:02:50.8]} 13... Rxc6 {[%clk 0:03:01.9]} 14.
Be5 {[%clk 0:01:43.3]} 14... b5 {[%clk 0:02:26]} 15. Qb3 {[%clk 0:01:40.1]}
15... e6 {[%clk 0:02:27]} 16. a4 {[%clk 0:01:38.8]} 16... bxa4 {[%clk
0:02:13.7]} 17. Qxb7 {[%clk 0:01:36.3]} 17... Rb6 {[%clk 0:02:00.7]} 18. Qc7
{[%clk 0:01:23.6]} 18... Rxb2 {[%clk 0:01:50.4]} 19. Nxa4 {[%clk 0:01:22.3]}
19... Rxe2 {[%clk 0:01:49.7]} 20. Qxd8 {[%clk 0:01:06.7]} 20... Rxd8 {[%clk
0:01:51.1]} 21. Rc6 {[%clk 0:01:07.1]} 21... Ra8 {[%clk 0:01:39.8]} 22. Rfc1
{[%clk 0:01:07.1]} 22... h5 {[%clk 0:01:36.3]} 23. Bf1 {[%clk 0:00:52.5]} 23...
Ra2 {[%clk 0:01:34.7]} 24. Nb6 {[%clk 0:00:52.3]} 24... Re8 {[%clk 0:01:28.2]}
25. Rc8 {[%clk 0:00:42.3]} 25... Rxc8 {[%clk 0:01:29]} 26. Rxc8+ {[%clk
0:00:43.4]} 26... Kh7 {[%clk 0:01:30.4]} 27. Rc7 {[%clk 0:00:42.3]} 27... Kg8
{[%clk 0:01:23.8]} 28. Ra7 {[%clk 0:00:27.4]} 28... a5 {[%clk 0:01:24.5]} 29.
Nc8 {[%clk 0:00:21.2]} 29... Ne4 {[%clk 0:01:18.4]} 30. Bxg7 {[%clk 0:00:19.5]}
30... Kxg7 {[%clk 0:01:19.8]} 31. f3 {[%clk 0:00:13.9]} 31... Nd2 {[%clk
0:01:16.6]} 32. Bg2 {[%clk 0:00:11.9]} 32... Nb3 {[%clk 0:00:58.5]} 33. Nd6
{[%clk 0:00:10.1]} 33... Nxd4 {[%clk 0:00:59.6]} 34. Nxf7 {[%clk 0:00:08.7]}
34... Kf6 {[%clk 0:00:58.1]} 35. Nd6 {[%clk 0:00:08.4]} 35... a4 {[%clk
0:00:50.1]} 36. f4 {[%clk 0:00:09.3]} 36... g5 {[%clk 0:00:39.4]} 37. fxg5+
{[%clk 0:00:08.3]} 37... Kxg5 {[%clk 0:00:40.4]} 38. Nb7 {[%clk 0:00:04.4]}
38... a3 {[%clk 0:00:39.6]} 39. Nc5 {[%clk 0:00:05.3]} 39... Kf6 {[%clk
0:00:41.2]} 40. h3 {[%clk 0:00:04.1]} 40... Ra1+ {[%clk 0:00:37.8]} 41. Kf2
{[%clk 0:00:04.5]} 41... Ra2+ {[%clk 0:00:36.6]} 42. Kf1 {[%clk 0:00:05.2]}
42... Ra1+ {[%clk 0:00:36.8]} 43. Kf2 {[%clk 0:00:06.6]} 43... a2 {[%clk
0:00:34.4]} 44. Ke3 {[%clk 0:00:06.7]} 44... Nc2+ {[%clk 0:00:29.1]} 45. Kd2
{[%clk 0:00:07.8]} 45... Nb4 {[%clk 0:00:29.3]} 46. Nb3 {[%clk 0:00:07]} 46...
Rg1 {[%clk 0:00:30.4]} 47. Kc3 {[%clk 0:00:06.7]} 47... Rxg2 {[%clk 0:00:23.4]}
48. Kxb4 {[%clk 0:00:07.6]} 48... Ke5 {[%clk 0:00:23.4]} 49. Nc5 {[%clk
0:00:05.4]} 49... d4 {[%clk 0:00:18]} 50. Kb3 {[%clk 0:00:05.2]} 50... Kd5
{[%clk 0:00:17.1]} 51. Nd7 {[%clk 0:00:03.9]} 51... Rxg3+ {[%clk 0:00:12.3]} 52.
Kxa2 {[%clk 0:00:05]} 52... d3 {[%clk 0:00:13.8]} 53. Kb3 {[%clk 0:00:05.5]}
53... Kd4 {[%clk 0:00:09.5]} 54. Ra4+ {[%clk 0:00:05.7]} 54... Ke3 {[%clk
0:00:10.5]} 55. Kc3 {[%clk 0:00:05.7]} 55... Rxh3 {[%clk 0:00:11.6]} 56. Ne5
{[%clk 0:00:06.5]} 56... Ke2 {[%clk 0:00:13]} 57. Re4+ {[%clk 0:00:06.7]} 57...
Kf2 {[%clk 0:00:12.9]} 58. Nxd3+ {[%clk 0:00:07.7]} 58... Kg2 {[%clk 0:00:12.5]}
59. Rxe6 {[%clk 0:00:08.4]} 59... h4 {[%clk 0:00:14.5]} 60. Kd2 {[%clk
0:00:09.5]} 60... Kg3 {[%clk 0:00:15.8]} 61. Re3+ {[%clk 0:00:10.1]} 61... Kg4
{[%clk 0:00:16.7]} 62. Nf2+ {[%clk 0:00:10.9]} 62... Kh5 {[%clk 0:00:17.4]} 63.
Rxh3 {[%clk 0:00:11.9]} 63... Kg5 {[%clk 0:00:19.4]} 64. Ke3 {[%clk 0:00:13.2]}
64... Kh5 {[%clk 0:00:20.8]} 65. Kf4 {[%clk 0:00:14.4]} 1-0

[Event "*** MasterClass Titled Tuesday Blitz"]
[Site "Chess.com"]
[Date "2017.08.01"]
[Round "4"]
[White "Keaton87"]
[Black "Rodalquilar"]
[Result "1-0"]
[WhiteElo "2506"]
[BlackElo "2532"]
[TimeControl "180+2"]
[EndTime "13:53:43 PDT"]
[Termination "Keaton87 won by checkmate"]

1. e4 {[%clk 0:03:02]} 1... e5 {[%clk 0:03:00.9]} 2. Nf3 {[%clk 0:03:03.1]} 2...
Nc6 {[%clk 0:03:02.4]} 3. Nc3 {[%clk 0:03:03.9]} 3... Nf6 {[%clk 0:03:03.2]} 4.
Bb5 {[%clk 0:03:04.5]} 4... Bd6 {[%clk 0:03:03.8]} 5. d3 {[%clk 0:03:05.5]} 5...
h6 {[%clk 0:03:04.4]} 6. a3 {[%clk 0:03:06.3]} 6... O-O {[%clk 0:03:05]} 7. O-O
{[%clk 0:03:06.1]} 7... a6 {[%clk 0:03:06.1]} 8. Bc4 {[%clk 0:03:06.8]} 8... Re8
{[%clk 0:03:01.8]} 9. Be3 {[%clk 0:03:07.5]} 9... Bf8 {[%clk 0:03:01.2]} 10. h3
{[%clk 0:03:08.3]} 10... d6 {[%clk 0:02:58.5]} 11. Qd2 {[%clk 0:03:07.6]} 11...
Be6 {[%clk 0:02:52.7]} 12. Bxe6 {[%clk 0:03:08.6]} 12... Rxe6 {[%clk 0:02:54.6]}
13. Nd5 {[%clk 0:03:09.3]} 13... Ne7 {[%clk 0:02:41.7]} 14. c4 {[%clk
0:03:08.1]} 14... Ng6 {[%clk 0:02:42.2]} 15. b4 {[%clk 0:03:02.8]} 15... c6
{[%clk 0:02:20.5]} 16. Bb6 {[%clk 0:03:01.8]} 16... Qc8 {[%clk 0:01:38.4]} 17.
Nc7 {[%clk 0:03:02.3]} 17... Nd7 {[%clk 0:01:27.8]} 18. Nxa8 {[%clk 0:02:59.5]}
18... Qxa8 {[%clk 0:01:24.7]} 19. Be3 {[%clk 0:03:00.4]} 19... b5 {[%clk
0:01:22.1]} 20. cxb5 {[%clk 0:02:43.3]} 20... axb5 {[%clk 0:01:22.6]} 21. Rfc1
{[%clk 0:02:41.9]} 21... d5 {[%clk 0:01:22.9]} 22. Qa2 {[%clk 0:02:18.7]} 22...
d4 {[%clk 0:01:20.9]} 23. Bd2 {[%clk 0:02:19.4]} 23... Nb6 {[%clk 0:01:21.5]}
24. Rc2 {[%clk 0:02:12]} 24... Na4 {[%clk 0:01:21.8]} 25. Rac1 {[%clk
0:02:12.2]} 25... Rf6 {[%clk 0:01:16.1]} 26. Nh2 {[%clk 0:02:03]} 26... Nh4
{[%clk 0:01:02.1]} 27. Ng4 {[%clk 0:01:59.2]} 27... Rg6 {[%clk 0:01:03]} 28. g3
{[%clk 0:01:45.7]} 28... Nf3+ {[%clk 0:01:04]} 29. Kg2 {[%clk 0:01:46.9]} 29...
Nxd2 {[%clk 0:01:05.5]} 30. Rxd2 {[%clk 0:01:30]} 30... Qe8 {[%clk 0:00:57.6]}
31. Qb3 {[%clk 0:01:20.5]} 31... h5 {[%clk 0:00:53]} 32. Nh2 {[%clk 0:01:19]}
32... Be7 {[%clk 0:00:54.4]} 33. Nf3 {[%clk 0:01:14.6]} 33... Bd8 {[%clk
0:00:32.6]} 34. Qd1 {[%clk 0:01:14.1]} 34... h4 {[%clk 0:00:32.8]} 35. g4 {[%clk
0:01:08.5]} 35... Qd7 {[%clk 0:00:27.5]} 36. Rdc2 {[%clk 0:01:08]} 36... Nc3
{[%clk 0:00:21.8]} 37. Rxc3 {[%clk 0:00:56.5]} 37... dxc3 {[%clk 0:00:23.7]} 38.
Nxe5 {[%clk 0:00:55.1]} 38... Qd4 {[%clk 0:00:15.4]} 39. Nxg6 {[%clk 0:00:48.6]}
39... fxg6 {[%clk 0:00:13.8]} 40. Qf3 {[%clk 0:00:48]} 40... Bg5 {[%clk
0:00:12.1]} 41. Rc2 {[%clk 0:00:47]} 41... Bd2 {[%clk 0:00:10]} 42. Qe2 {[%clk
0:00:47.5]} 42... Bf4 {[%clk 0:00:10.4]} 43. Qe1 {[%clk 0:00:44.4]} 43... Be5
{[%clk 0:00:10.5]} 44. Qe3 {[%clk 0:00:44.3]} 44... Qd6 {[%clk 0:00:09.8]} 45.
d4 {[%clk 0:00:34.5]} 45... Bxd4 {[%clk 0:00:09.6]} 46. Qd3 {[%clk 0:00:35.7]}
46... c5 {[%clk 0:00:09.3]} 47. bxc5 {[%clk 0:00:36]} 47... Qxc5 {[%clk
0:00:11.2]} 48. f4 {[%clk 0:00:33.1]} 48... Kh7 {[%clk 0:00:11.6]} 49. Kf3
{[%clk 0:00:33.7]} 49... g5 {[%clk 0:00:09.8]} 50. e5+ {[%clk 0:00:33.2]} 50...
Kh8 {[%clk 0:00:09.4]} 51. e6 {[%clk 0:00:25.3]} 51... gxf4 {[%clk 0:00:10.7]}
52. Qe4 {[%clk 0:00:24.9]} 52... Bf6 {[%clk 0:00:09.6]} 53. Re2 {[%clk
0:00:21.4]} 53... Qxa3 {[%clk 0:00:10.8]} 54. Kxf4 {[%clk 0:00:20.9]} 54... Qd6+
{[%clk 0:00:08.1]} 55. Kf5 {[%clk 0:00:18.5]} 55... Qc5+ {[%clk 0:00:09.2]} 56.
Kg6 {[%clk 0:00:19.2]} 56... Qg5+ {[%clk 0:00:07.9]} 57. Kf7 {[%clk 0:00:20.4]}
57... Be7 {[%clk 0:00:09.6]} 58. Qf5 {[%clk 0:00:18.5]} 58... b4 {[%clk
0:00:11.1]} 59. Qxg5 {[%clk 0:00:16.4]} 59... Bxg5 {[%clk 0:00:13]} 60. e7
{[%clk 0:00:15.2]} 60... Bxe7 {[%clk 0:00:14.1]} 61. Rxe7 {[%clk 0:00:16.6]}
61... b3 {[%clk 0:00:15.4]} 62. Kg6 {[%clk 0:00:17.8]} 62... b2 {[%clk
0:00:12.6]} 63. Re8# {[%clk 0:00:19]} 1-0